bitfinex/quotes_ETHUSD_20220731
["timestamp","ask_amount","ask_price","bid_price","bid_amount"]
[1659264877737,1.65,1701.8,1701.7,2.89804672]
[1659264884271,1.65,1701.8,1701.7,6.39804672]
[1659264884584,1.65,1701.8,1701.7,2.89804672]
[1659264884792,1.65,1701.8,1701.7,6.39804672]
[1659264887237,1.65,1701.8,1701.7,12.89804672]
[1659264889160,1.65,1701.8,1701.7,5.89804672]
[1659264889613,1.65,1701.8,1701.7,12.89804672]
[1659264890287,1.65,1701.8,1701.7,5.89804672]
[1659264890474,1.65,1701.8,1701.7,12.89804672]
[1659264891610,1.64713535,1701.8,1701.7,6.66981207]
[1659264891779,1.64713535,1701.8,1701.7,5.89804672]
[1659264892049,1.64713535,1701.8,1701.7,9.39804672]
[1659264892172,1.64713535,1701.8,1701.7,12.89804672]
[1659264892510,1.64713535,1701.8,1701.7,9.39804672]
[1659264892808,1.64713535,1701.8,1701.7,5.89804672]
[1659264893106,1.64713535,1701.8,1701.7,12.89804672]
[1659264895499,1.64713535,1701.8,1701.7,5.89804672]
[1659264895674,1.64713535,1701.8,1701.7,9.39804672]
[1659264897834,0.05,1702.2,1701.9,9.0]
[1659264898018,0.05,1702.5,1702.1,7.17176535]
[1659264898221,3.0223,1702.6,1702.2,5.89804672]
[1659264898429,11.0934,1702.7,1702.3,2.89804672]
[1659264898430,11.0434,1702.7,1702.3,2.89804672]
[1659264898635,11.0434,1702.7,1702.3,2.92567063]
[1659264898942,8.0153,1702.7,1702.3,4.68718063]
[1659264900138,8.0153,1702.7,1702.3,6.15507063]
[1659264903529,0.02823465,1702.6,1702.3,0.29358]
[1659264903760,0.61723465,1702.4,1702.3,0.29358]
[1659264904335,0.61723465,1702.4,1702.1,3.29364]
[1659264904659,0.61723465,1702.4,1702.1,6.19168672]
[1659264905575,0.61723465,1702.4,1702.0,0.29366]
[1659264905736,1.00419868,1702.4,1702.0,0.29366]
[1659264905938,1.00419868,1702.4,1701.7,7.05]
[1659264906155,1.00419868,1702.4,1701.8,3.19173672]
[1659264906578,1.00419868,1702.4,1701.8,6.69173672]
[1659264906868,0.05,1702.5,1702.1,3.79362]
[1659264907113,8.0153,1702.7,1702.1,3.79362]
[1659264907114,8.0653,1702.7,1702.1,3.79362]
[1659264907284,0.37596403,1702.6,1702.1,3.19166672]
[1659264908049,0.37596403,1702.6,1702.1,4.65974672]
[1659264908650,0.02823465,1702.2,1702.1,4.65974672]
[1659264908855,0.02823465,1702.2,1702.1,3.19166672]
[1659264910471,0.02823465,1702.2,1702.1,0.29362]
[1659264911094,0.02823465,1702.2,1701.9,3.29369]
[1659264911294,0.02823465,1702.2,1701.9,6.19173672]
[1659264911534,0.02823465,1702.2,1701.9,6.18826113]
[1659264912450,0.02823465,1702.2,1702.0,6.39804672]
[1659264912617,0.37596403,1702.4,1702.0,6.40044976]
[1659264912823,0.37596403,1702.4,1702.0,8.16218976]
[1659264913303,0.37596403,1702.4,1702.1,1.46802]
[1659264913656,0.37596403,1702.4,1702.1,3.22964]
[1659264914206,0.37596403,1702.4,1702.1,1.76162]
[1659264914446,0.37596403,1702.4,1702.2,1.6734752]
[1659264917394,0.37596403,1702.4,1702.2,1.33914761]
[1659264918164,0.37596403,1702.4,1702.1,1.9671433]
[1659264918910,0.37596403,1702.4,1702.1,1.76162]
[1659264919807,0.37596403,1702.4,1702.1,0.2936]
[1659264920010,0.02823465,1702.3,1701.9,3.29369]
[1659264920312,0.02823465,1702.3,1701.9,3.19173672]
[1659264924686,0.02823465,1702.3,1701.9,4.66002672]
[1659264925681,0.02823465,1702.3,1701.9,4.86557962]
[1659264927004,0.02823465,1702.3,1701.9,4.66002672]
[1659264929109,0.02823465,1702.3,1701.9,8.16002672]
[1659264930645,0.02823465,1702.3,1701.9,4.66002672]
[1659264931524,0.02823465,1702.3,1701.9,8.16002672]
[1659264931691,0.02823465,1702.3,1701.9,4.66002672]
[1659264932725,0.02823465,1702.3,1701.9,0.29369]
[1659264932930,0.37596403,1702.4,1701.9,0.29369]
[1659264935062,3.5,1702.3,1701.9,0.29369]
[1659264935376,1.93852738,1703.4,1702.6,2.75568196]
[1659264935528,1.93852738,1703.4,1702.9,3.5]
[1659264935727,3.97757924,1703.6,1703.0,3.0]
[1659264935728,3.2712,1703.6,1703.0,3.0]
[1659264936032,3.2712,1703.6,1703.0,3.08024901]
[1659264936232,0.02823465,1703.4,1703.0,3.08024901]
[1659264936431,3.4712,1703.6,1703.0,6.87373901]
[1659264936432,3.2712,1703.6,1703.0,6.87373901]
[1659264936677,3.2712,1703.6,1703.0,3.37373901]
[1659264937242,3.2712,1703.6,1703.0,6.27178573]
[1659264937761,3.27450819,1703.6,1703.0,6.27178573]
[1659264937960,3.27450819,1703.6,1703.0,9.77178573]
[1659264938119,3.57450819,1703.6,1703.0,9.77178573]
[1659264938320,3.57450819,1703.6,1703.0,6.27178573]
[1659264938553,3.5712,1703.6,1703.0,6.27178573]
[1659264939275,3.5712,1703.6,1703.0,9.77178573]
[1659264939623,3.5712,1703.6,1703.0,10.11650008]
[1659264940350,3.5712,1703.6,1703.0,6.61650008]
[1659264940553,3.5712,1703.6,1703.0,13.61650008]
[1659264940760,3.5712,1703.6,1703.0,10.11650008]
[1659264940971,3.5712,1703.6,1703.0,6.61650008]
[1659264942030,3.5712,1703.6,1703.0,8.08389008]
[1659264942578,3.5712,1703.6,1703.0,11.58389008]
[1659264942955,3.5712,1703.6,1703.1,1.46738]
[1659264943262,3.5712,1703.6,1703.1,3.22823]
[1659264943438,0.3,1703.6,1703.1,3.22823]
[1659264943638,8.9297,1703.7,1703.1,3.22823]
[1659264946575,8.9297,1703.7,1703.4,1.76059]
[1659264946892,1.0328,1703.7,1703.4,1.76059]
[1659264947782,0.7328,1703.7,1703.4,1.76059]
[1659264947996,3.4415,1703.8,1703.4,1.76059]
[1659264948177,1.0328,1703.8,1703.4,3.47370469]
[1659264948380,0.35,1704.0,1703.5,3.71082701]
[1659264948679,5.10792164,1704.6,1703.9,7.3]
[1659264948680,7.5589,1704.6,1703.9,7.3]
[1659264948994,0.00328194,1704.1,1704.0,4.65778672]
[1659264949159,0.63528194,1704.1,1704.0,3.4314615]
[1659264949544,0.63528194,1704.1,1704.0,0.29329]
[1659264949787,0.632,1704.1,1704.0,0.29329]
[1659264949987,13.28134681,1704.6,1704.0,0.29329]
[1659264950359,13.28134681,1704.6,1704.0,1.75992]
[1659264950564,0.00330694,1704.4,1704.0,0.4986049]
[1659264950871,0.00330694,1704.4,1704.1,0.29331]
[1659264951072,0.00330694,1704.4,1704.1,1.75984]
[1659264951456,8.1589,1704.6,1704.1,1.75984]
[1659264952487,8.1589,1704.6,1704.1,1.79622186]
[1659264952705,8.1589,1704.6,1704.2,0.29331]
[1659264953627,11.05694672,1704.6,1704.2,0.29331]
[1659264956033,8.1589,1704.6,1704.2,0.29331]
[1659264956341,0.05,1704.9,1704.3,0.34471435]
[1659264956342,0.00372329,1704.7,1704.3,0.34471435]
[1659264956537,0.00372329,1704.7,1704.3,12.00218107]
[1659264956750,0.00372329,1704.7,1704.4,4.46622]
[1659264957340,7.7144,1705.0,1704.5,1.75936]
[1659264957509,7.9644,1705.0,1704.5,1.75936]
[1659264958215,0.003137,1704.9,1704.5,1.75936]
[1659264958845,7.9644,1705.0,1704.5,1.75936]
[1659264959425,7.96795661,1705.0,1704.5,1.75936]
[1659264959625,8.26795661,1705.0,1704.5,1.75936]
[1659264959848,7.66795661,1705.0,1704.5,1.75936]
[1659264959998,5.8536,1705.2,1704.5,1.75936]
[1659264959999,0.05,1705.2,1704.9,7.17176535]
[1659264960205,2.7815334,1705.6,1705.1,7.3]
[1659264960206,0.0221638,1705.6,1705.1,7.3]
[1659264960540,0.0221638,1705.6,1705.5,7.0]
[1659264960702,0.0221638,1705.6,1705.5,13.5]
[1659264961064,0.0221638,1705.6,1705.5,16.39804672]
[1659264961344,0.11974,1705.9,1705.5,16.39804672]
[1659264961345,0.00087879,1706.1,1705.7,0.17176535]
[1659264961500,0.007,1706.3,1706.2,8.0]
[1659264961829,0.11193288,1706.6,1706.2,8.0]
[1659264961830,0.02823465,1706.5,1706.2,2.89804672]
[1659264962036,2.61662508,1707.1,1706.3,3.24276107]
[1659264962345,0.02823465,1706.5,1706.2,0.05]
[1659264962546,0.17823465,1706.5,1706.0,0.2929]
[1659264962720,0.00414192,1706.6,1705.8,3.4901]
[1659264962900,0.17823465,1706.3,1705.8,6.33814672]
[1659264963101,0.17823465,1706.3,1705.8,3.34471435]
[1659264963624,0.17823465,1706.3,1705.8,0.34471435]
[1659264965324,0.17823465,1706.0,1705.8,0.34471435]
[1659264965630,0.17823465,1706.0,1705.6,0.4402]
[1659264965808,0.17823465,1705.6,1705.3,0.05]
[1659264966007,0.17823465,1705.6,1704.9,6.21426715]
[1659264966008,0.17823465,1705.6,1705.0,0.05]
[1659264966226,0.17823465,1705.6,1704.9,0.17416715]
[1659264966227,0.17823465,1705.4,1704.9,0.17416715]
[1659264966437,0.17823465,1705.4,1704.7,0.4904]
[1659264966601,0.17823465,1705.4,1704.7,0.4404]
[1659264967241,0.05,1705.5,1705.1,0.02176535]
[1659264967443,0.05,1705.7,1705.2,3.33834672]
[1659264967610,0.17823465,1705.8,1705.1,0.29303]
[1659264967815,0.17823465,1705.5,1705.0,0.05]
[1659264968129,2.89804672,1705.7,1705.0,2.89804672]
[1659264968130,0.17823465,1705.3,1705.0,2.89804672]
[1659264968457,0.22823465,1705.6,1705.0,3.33834672]
[1659264968745,0.17823465,1705.6,1705.0,2.89804672]
[1659264969310,0.05,1705.7,1705.0,2.93547169]
[1659264969511,0.05,1705.8,1705.0,2.93547169]
[1659264969711,14.2358,1705.9,1705.1,17.32037068]
[1659264969956,14.2358,1705.9,1705.2,3.33834672]
[1659264970126,14.2358,1705.9,1705.3,2.89804672]
[1659264970127,14.1858,1705.9,1705.3,2.89804672]
[1659264970330,14.1858,1705.9,1705.3,3.24276107]
[1659264970739,11.4113,1705.9,1705.3,3.24276107]
[1659264971067,11.1113,1705.9,1705.3,3.24276107]
[1659264971285,10.8113,1705.9,1705.3,3.24276107]
[1659264972464,11.1113,1705.9,1705.3,3.24276107]
[1659264973263,11.1113,1705.9,1705.3,3.24638399]
[1659264973779,10.8113,1705.9,1705.4,2.89804672]
[1659264973979,0.22823465,1706.1,1705.5,0.34833684]
[1659264974290,0.00327601,1706.3,1705.5,3.78853684]
[1659264974291,8.2863,1706.2,1705.5,3.78853684]
[1659264974582,8.5363,1706.2,1705.5,3.78853684]
[1659264974775,0.05,1706.3,1705.6,2.89804672]
[1659264975037,0.0037005,1706.3,1705.8,5.89009442]
[1659264975193,0.0037005,1706.3,1705.9,5.91981207]
[1659264975391,0.0037005,1706.3,1706.1,0.02176535]
[1659264975836,3.3025,1706.5,1706.1,0.02176535]
[1659264976034,3.3025,1706.5,1706.0,3.26814785]
[1659264976189,3.3025,1706.5,1706.0,3.2463825]
[1659264976386,3.3062007,1706.5,1706.0,3.2463825]
[1659264977191,10.758,1706.7,1706.0,3.2463825]
[1659264977509,11.308,1706.7,1706.0,3.2463825]
[1659264977735,0.05,1706.8,1706.3,7.0]
[1659264977736,0.00319691,1706.6,1706.3,7.0]
[1659264978035,0.00319691,1706.6,1706.4,7.20452642]
[1659264978245,0.00319691,1706.6,1706.5,7.39804672]
[1659264978625,0.35,1707.0,1706.7,8.0]
[1659264978826,0.3,1707.0,1706.8,2.89804672]
[1659264979526,0.025,1707.2,1706.9,13.19219131]
[1659264979744,0.025,1707.2,1707.0,6.33784672]
[1659264979911,0.025,1707.2,1707.1,6.45609086]
[1659264980114,0.02991038,1707.5,1707.2,9.0]
[1659264980343,0.02991038,1707.5,1707.3,6.39804672]
[1659264980557,0.00091038,1707.5,1707.4,3.11981207]
[1659264980725,0.05,1707.9,1707.8,7.22176535]
[1659264980926,0.03142618,1708.2,1708.1,0.61076535]
[1659264981114,7.88161808,1708.8,1708.1,3.50881207]
[1659264981337,7.88161808,1708.8,1708.2,2.89804672]
[1659264981663,0.03294197,1708.9,1708.3,9.08304672]
[1659264981825,0.03294197,1708.9,1708.2,0.63724435]
[1659264981826,7.53294197,1708.9,1708.2,0.63724435]
[1659264982022,7.67823465,1708.8,1708.1,0.05]
[1659264982397,0.17823465,1708.5,1708.0,0.05]
[1659264982561,0.17823465,1708.5,1707.8,0.05]
[1659264982713,0.35421901,1708.5,1707.8,2.89804672]
[1659264982914,0.30421901,1708.5,1707.8,3.27011061]
[1659264983156,0.05,1708.6,1707.8,3.30012657]
[1659264983458,7.62823465,1708.4,1707.8,0.03001596]
[1659264983765,0.12823465,1708.1,1707.8,0.03001596]
[1659264983927,0.12823465,1707.9,1707.8,1.596e-05]
[1659264984263,2.89804672,1707.9,1707.4,0.05]
[1659264984468,3.12823465,1707.8,1707.2,0.05]
[1659264984625,2.89804672,1707.7,1707.0,0.05]
[1659264984813,0.12823465,1707.3,1706.9,0.05]
[1659264985013,0.12823465,1707.3,1706.7,7.8829]
[1659264985014,0.12823465,1707.3,1706.7,0.4399]
[1659264985231,0.12823465,1707.3,1706.6,3.5]
[1659264985457,0.05,1707.4,1706.6,2.89804672]
[1659264985458,0.12823465,1707.1,1706.6,2.89804672]
[1659264985613,0.12823465,1707.1,1706.6,6.39804672]
[1659264986053,0.05412142,1707.3,1706.6,6.39804672]
[1659264986303,0.00412142,1707.3,1706.6,2.89804672]
[1659264986503,0.12823465,1707.0,1706.6,2.89804672]
[1659264986667,0.12823465,1706.8,1706.6,2.89804672]
[1659264986865,0.12823465,1706.8,1706.4,0.44]
[1659264987080,0.12823465,1706.8,1706.2,0.44]
[1659264987370,0.12823465,1706.8,1706.6,0.03934403]
[1659264987763,0.05,1707.1,1706.6,0.03934403]
[1659264988068,2.89804672,1707.1,1706.6,0.03934403]
[1659264988309,0.6,1707.2,1706.6,0.03934403]
[1659264988491,0.05,1707.3,1706.7,0.38900946]
[1659264988492,0.3,1707.3,1706.7,0.38900946]
[1659264988682,0.65,1707.4,1706.7,0.38900946]
[1659264988880,0.05,1707.5,1706.7,6.85882153]
[1659264989217,0.05,1707.5,1706.9,0.07176535]
[1659264989362,0.05,1707.7,1707.0,7.18256107]
[1659264989663,0.00412139,1707.4,1707.1,2.89804672]
[1659264990319,0.00412139,1707.4,1707.1,2.96981207]
[1659264990538,0.05,1707.7,1707.1,2.96981207]
[1659264990732,11.1977,1707.8,1707.1,2.96981207]
[1659264990733,11.1977,1707.8,1707.2,0.4398]
[1659264991329,0.00411613,1707.6,1707.2,0.4398]
[1659264991530,0.00411613,1707.6,1707.1,2.89804672]
[1659264991531,0.00411613,1707.6,1707.1,3.33784672]
[1659264991776,0.00411613,1707.6,1707.1,3.40961207]
[1659264991923,0.00411613,1707.6,1707.2,3.5]
[1659264992249,11.7977,1707.8,1707.1,7.28905096]
[1659264992422,11.7977,1707.8,1707.1,3.78905096]
[1659264992626,11.7977,1707.8,1707.1,7.28905096]
[1659264992825,11.7977,1707.8,1707.1,3.78905096]
[1659264993366,14.69574672,1707.8,1707.1,0.47452454]
[1659264993571,0.12823465,1707.6,1707.1,0.03472454]
[1659264993794,14.74574672,1707.8,1707.1,0.03472454]
[1659264994110,14.69574672,1707.8,1707.1,0.03472454]
[1659264994389,14.69574672,1707.8,1707.1,0.37943889]
[1659264994965,11.7977,1707.8,1707.1,3.27748561]
[1659264998561,11.92593465,1707.8,1707.1,3.27748561]
[1659264998773,11.7977,1707.8,1707.1,3.27748561]
[1659264999618,14.69574672,1707.8,1707.1,0.37943889]
[1659265000578,2.89804672,1707.7,1707.1,0.37943889]
[1659265001743,11.7977,1707.8,1707.1,3.59952308]
[1659265002198,2.89804672,1707.7,1707.1,0.40873636]
[1659265002549,3.02628137,1707.7,1707.1,0.03472454]
[1659265002715,3.19804672,1707.6,1707.1,0.03472454]
[1659265003034,3.49804672,1707.6,1707.1,0.03472454]
[1659265003250,3.49804672,1707.6,1706.9,0.34279]
[1659265003251,0.12823465,1707.4,1706.9,0.34279]
[1659265003396,0.12823465,1707.4,1706.9,0.29279]
[1659265003596,0.12823465,1707.4,1706.9,0.66680526]
[1659265005351,0.12823465,1707.4,1706.9,0.29279]
[1659265005520,0.12823465,1707.4,1706.8,0.47791895]
[1659265005521,0.12823465,1707.2,1706.8,0.03801895]
[1659265005839,0.12823465,1706.9,1706.8,0.03801895]
[1659265006044,3.02628137,1706.9,1706.8,0.03801895]
[1659265006198,7.52628137,1706.9,1706.4,0.05]
[1659265006399,7.52628137,1706.9,1706.2,0.05]
[1659265006400,3.92823465,1706.5,1706.2,0.05]
[1659265006636,6.82628137,1706.5,1705.9,0.05]
[1659265006860,0.12823465,1705.8,1705.7,0.05]
[1659265007051,16.89804672,1706.4,1705.3,3.55]
[1659265007052,0.12823465,1706.1,1705.3,3.55]
[1659265007198,3.07628137,1706.1,1705.3,3.5]
[1659265007397,3.07628137,1706.1,1705.3,3.9402]
[1659265007640,3.37628137,1706.1,1705.3,3.9402]
[1659265007802,3.67628137,1706.1,1705.3,3.9402]
[1659265008202,3.67350374,1706.1,1705.3,3.9402]
[1659265008404,0.34722237,1706.1,1705.6,3.5]
[1659265008638,11.1725,1706.3,1705.6,3.9402]
[1659265008799,11.4225,1706.3,1705.8,3.5]
[1659265008999,3.05,1706.5,1705.8,3.61490476]
[1659265009333,3.05,1706.5,1705.8,3.95961911]
[1659265009334,2.89804672,1706.5,1705.8,3.95961911]
[1659265009539,0.05,1706.6,1705.8,4.39971911]
[1659265009847,2.94804672,1706.6,1705.8,4.39971911]
[1659265010007,2.94804672,1706.6,1706.0,3.57176535]
[1659265010008,0.05,1706.6,1706.0,3.57176535]
[1659265010209,8.0073,1706.7,1706.2,3.5]
[1659265010413,7.9573,1706.7,1706.2,3.79289]
[1659265010602,0.05,1706.9,1706.2,3.79289]
[1659265010803,12.09401989,1707.1,1706.2,3.79289]
[1659265010804,0.05,1707.0,1706.2,3.79289]
[1659265011016,0.05,1707.0,1706.3,0.34471435]
[1659265011223,6.1317,1707.1,1706.3,0.34471435]
[1659265011438,9.02974672,1707.1,1706.3,0.34471435]
[1659265011948,9.03386806,1707.1,1706.3,0.34471435]
[1659265012511,9.03386806,1707.1,1706.4,3.5]
[1659265012670,6.01374672,1707.1,1706.4,3.5]
[1659265013365,6.01741015,1707.1,1706.4,3.5]
[1659265013562,6.61741015,1707.1,1706.4,3.5]
[1659265014060,10.11741015,1707.1,1706.4,3.5]
[1659265014234,6.61374672,1707.1,1706.4,3.5]
[1659265014439,3.7157,1707.1,1706.5,0.34471435]
[1659265014637,3.71982152,1707.1,1706.5,0.63756435]
[1659265014841,3.11982152,1707.1,1706.6,3.57176535]
[1659265015022,3.11982152,1707.1,1706.6,4.01166535]
[1659265015246,0.00412152,1707.1,1706.7,1.80863435]
[1659265015450,0.00412152,1707.1,1706.8,0.29277]
[1659265015645,0.05,1707.4,1706.9,3.9398]
[1659265015855,0.05,1707.6,1707.0,0.34471435]
[1659265016022,7.8551,1707.7,1707.0,0.34471435]
[1659265016239,0.00412145,1707.3,1707.0,0.34471435]
[1659265016441,0.00412145,1707.3,1707.0,3.24276107]
[1659265016680,0.00412145,1707.3,1707.1,3.5]
[1659265017338,0.05,1707.6,1707.1,3.5]
[1659265017541,7.8051,1707.7,1707.2,3.24276107]
[1659265017739,0.05,1707.9,1707.3,6.39804672]
[1659265017940,2.9277,1708.0,1707.4,2.89804672]
[1659265018182,0.00302003,1707.5,1707.4,2.89804672]
[1659265018387,0.00302003,1707.5,1707.4,2.96981207]
[1659265018550,0.00302003,1707.5,1707.4,6.46981207]
[1659265018739,0.00302003,1707.5,1707.4,6.90951207]
[1659265019177,0.05,1707.9,1707.4,8.71749642]
[1659265019391,3.3104,1708.1,1707.5,8.59349672]
[1659265019693,3.2604,1708.1,1707.6,2.89804672]
[1659265019973,7.8551,1708.2,1707.6,2.89804672]
[1659265019974,7.8051,1708.2,1707.6,7.03539107]
[1659265020208,7.8051,1708.2,1707.6,0.63734435]
[1659265020508,3.02628137,1708.1,1707.4,0.08988245]
[1659265020656,0.12823465,1707.8,1707.4,0.03988245]
[1659265020858,0.12823465,1707.8,1707.4,2.93792917]
[1659265021058,0.05,1708.0,1707.4,2.93792917]
[1659265021297,7.8551,1708.2,1707.4,3.37762917]
[1659265021457,7.8051,1708.2,1707.4,3.37762917]
[1659265021656,8.4051,1708.2,1707.4,2.93792917]
[1659265021953,0.00339264,1708.1,1707.5,3.63847333]
[1659265022173,0.00339264,1708.1,1707.5,10.03652005]
[1659265022354,0.00339264,1708.1,1707.6,2.89804672]
[1659265022580,8.35849264,1708.2,1707.6,2.89804672]
[1659265022906,3.8777,1708.4,1707.9,0.07176535]
[1659265022907,0.05,1708.4,1707.9,0.07176535]
[1659265023107,8.3694,1708.6,1707.9,6.46981207]
[1659265023257,0.05,1708.7,1707.9,6.46981207]
[1659265023463,2.89804672,1708.7,1708.0,0.34471435]
[1659265024114,3.20226573,1708.7,1708.0,0.34471435]
[1659265024300,2.89804672,1708.6,1708.0,0.34471435]
[1659265024497,2.89804672,1708.6,1707.8,0.05]
[1659265024722,0.17598436,1708.5,1707.7,0.05]
[1659265024922,3.42403108,1708.5,1707.6,3.546]
[1659265025131,3.0,1708.4,1707.6,6.73670672]
[1659265025330,3.0,1708.4,1707.7,0.34471435]
[1659265025331,3.05,1708.4,1707.7,0.34471435]
[1659265025491,3.0,1708.4,1707.8,2.89804672]
[1659265025821,0.65,1708.5,1707.8,2.89804672]
[1659265025822,0.35,1708.5,1707.8,2.89804672]
[1659265026035,2.89804672,1708.5,1707.9,0.4164797]
[1659265026234,3.0,1708.4,1707.9,0.63732435]
[1659265026397,0.6,1708.5,1708.0,2.89804672]
[1659265026604,0.00412033,1708.6,1708.0,2.89804672]
[1659265026827,0.30412033,1708.6,1708.0,2.89804672]
[1659265027289,0.3,1708.6,1708.0,2.89804672]
[1659265027485,3.65,1708.7,1708.0,2.89804672]
[1659265027683,3.6,1708.7,1708.0,2.89804672]
[1659265027920,0.00412062,1708.6,1708.1,0.34471435]
[1659265028624,3.6,1708.7,1708.1,3.53534107]
[1659265028995,3.60365387,1708.7,1708.2,2.96981207]
[1659265029197,3.60365387,1708.7,1708.3,3.24276107]
[1659265029627,3.60365387,1708.7,1708.0,8.33731]
[1659265029628,6.50170059,1708.7,1708.0,0.05]
[1659265029800,6.62993524,1708.7,1708.0,0.29261]
[1659265030136,6.49804672,1708.7,1708.0,0.29261]
[1659265030636,0.12823465,1708.6,1708.0,0.29261]
[1659265030794,3.02628137,1708.6,1708.0,0.29261]
[1659265030998,3.02628137,1708.6,1707.8,0.08969664]
[1659265031325,3.3,1708.5,1707.9,0.34471435]
[1659265031539,3.72823465,1708.5,1707.9,0.34471435]
[1659265031921,3.72823465,1708.5,1708.0,0.03559569]
[1659265032324,0.12823465,1708.1,1708.0,0.03559569]
[1659265033008,3.02628137,1708.1,1708.0,0.03559569]
[1659265033393,3.20226573,1708.1,1708.0,0.03559569]
[1659265033594,3.20226573,1708.1,1707.6,0.05]
[1659265033595,10.88726573,1708.1,1707.6,0.05]
[1659265033796,10.88726573,1708.1,1707.4,0.05]
[1659265033797,3.62823465,1707.5,1707.4,0.05]
[1659265033994,3.62823465,1707.5,1707.0,0.05]
[1659265033995,0.12823465,1707.5,1707.0,0.05]
[1659265034242,6.4916,1707.9,1706.9,0.34471435]
[1659265034243,0.17823465,1707.7,1706.9,0.34471435]
[1659265034394,3.32628137,1707.7,1706.9,0.34471435]
[1659265034795,3.32628137,1707.7,1706.9,0.78451435]
[1659265035215,3.35,1707.8,1707.0,7.29279]
[1659265035216,0.35,1707.8,1707.0,7.29279]
[1659265035427,0.12823465,1707.3,1707.0,0.29279]
[1659265035707,2.89804672,1707.7,1706.7,0.05]
[1659265035708,3.77823465,1707.6,1706.7,0.05]
[1659265036022,3.77823465,1707.6,1707.0,0.03846882]
[1659265036023,2.89804672,1707.5,1707.0,0.03846882]
[1659265036224,3.3,1707.4,1707.0,0.03846882]
[1659265036395,6.19804672,1707.4,1707.0,0.03846882]
[1659265036597,6.32628137,1707.4,1707.0,0.03846882]
[1659265036914,6.62628137,1707.4,1707.0,0.03846882]
[1659265037210,0.12823465,1707.1,1707.0,0.03846882]
[1659265038836,8.3328,1707.3,1707.0,0.03846882]
[1659265040924,0.6,1707.4,1707.0,0.03846882]
[1659265041131,11.3783,1707.7,1707.0,0.03846882]
[1659265041311,11.3783,1707.7,1707.0,0.38318317]
[1659265041312,14.22634672,1707.7,1707.0,0.38318317]
[1659265041515,14.82634672,1707.7,1707.0,0.38318317]
[1659265041835,11.22634672,1707.7,1707.0,0.38318317]
[1659265042762,11.22634672,1707.7,1707.0,0.67595317]
[1659265043460,11.82634672,1707.7,1707.0,0.67595317]
[1659265045411,0.12823465,1707.6,1707.0,0.67595317]
[1659265046020,11.87634672,1707.7,1707.0,3.57399989]
[1659265046021,8.9783,1707.7,1707.0,3.57399989]
[1659265046218,8.3283,1707.7,1707.1,9.89804672]
[1659265046434,8.3283,1707.7,1707.2,1.80838435]
[1659265047235,8.3283,1707.7,1707.3,0.29272]
[1659265047732,8.9283,1707.7,1707.3,0.29272]
[1659265050257,8.9283,1707.7,1707.2,0.38295719]
[1659265050762,8.9283,1707.7,1707.3,0.29277]
[1659265052051,8.9283,1707.7,1707.3,1.75641]
[1659265052770,0.6,1707.7,1707.3,1.75641]
[1659265052977,3.5916,1707.9,1707.3,1.75641]
[1659265053173,3.5916,1707.9,1707.3,1.81378234]
[1659265053174,3.49804672,1707.9,1707.3,1.81378234]
[1659265053348,3.49804672,1707.9,1707.4,0.29274]
[1659265053743,0.3,1707.9,1707.4,0.29027219]
[1659265053968,14.74524672,1708.0,1707.4,0.29027219]
[1659265054170,11.74524672,1708.0,1707.4,0.29027219]
[1659265054786,11.74524672,1708.0,1707.4,0.63498654]
[1659265055399,8.8472,1708.0,1707.4,2.09857654]
[1659265056270,8.5472,1708.0,1707.5,1.53522535]
[1659265056514,8.5472,1708.0,1707.6,0.34471435]
[1659265056670,8.2472,1708.0,1707.6,0.34471435]
[1659265056872,8.2472,1708.0,1707.7,1.46331]
[1659265057304,6.4335662,1708.1,1707.7,1.46331]
[1659265057469,0.3649662,1708.1,1707.7,1.46331]
[1659265057674,0.0649662,1708.1,1707.7,1.46331]
[1659265058085,0.12823465,1707.9,1707.7,0.03852126]
[1659265058889,3.02628137,1707.9,1707.7,0.03852126]
[1659265059114,3.0,1707.8,1707.7,0.03852126]
[1659265061721,0.6,1707.9,1707.7,0.03852126]
[1659265061920,0.3,1707.9,1707.7,0.03852126]
[1659265062320,3.6,1708.0,1707.6,0.29271]
[1659265062561,6.49804672,1708.0,1707.5,0.34471435]
[1659265062735,6.62628137,1708.0,1707.5,0.34471435]
[1659265062933,0.12823465,1707.7,1707.5,0.34471435]
[1659265064667,0.12823465,1707.7,1707.4,0.02946799]
[1659265064825,0.12823465,1707.7,1707.5,0.29273]
[1659265066030,0.12823465,1707.7,1707.4,0.32222799]
[1659265067369,0.12823465,1707.7,1707.4,0.02946799]
[1659265067567,6.67628137,1708.0,1707.5,3.58532266]
[1659265067724,6.62628137,1708.0,1707.5,3.58532266]
[1659265069334,6.49804672,1708.0,1707.5,3.58532266]
[1659265070690,1.70637924,1708.5,1707.7,2.96981207]
[1659265070849,0.32562197,1708.9,1708.6,0.27176535]
[1659265070850,0.03294197,1708.9,1708.6,0.27176535]
[1659265071031,0.46847564,1708.8,1708.7,9.89804672]
[1659265071391,0.70271346,1709.0,1708.9,9.07176535]
[1659265071392,0.46847564,1709.0,1708.9,9.07176535]
[1659265071536,0.46847564,1709.2,1708.9,3.33734672]
[1659265071740,0.007,1709.5,1709.0,2.89804672]
[1659265072090,0.35993341,1709.8,1709.1,0.34471435]
[1659265072236,0.12823465,1709.3,1709.1,0.34471435]
[1659265072546,1.0,1709.9,1708.7,0.05]
[1659265072547,0.12823465,1709.2,1708.7,0.05]
[1659265072753,0.12823465,1709.3,1708.6,0.34471435]
[1659265073148,0.12823465,1709.1,1708.6,0.34471435]
[1659265073378,0.12823465,1708.9,1708.4,0.05]
[1659265073558,11.0638,1709.3,1708.2,8.1131]
[1659265073559,0.12823465,1708.7,1708.2,8.1631]
[1659265073883,0.12823465,1708.7,1708.2,11.01114672]
[1659265075284,0.12823465,1708.7,1708.3,0.45961911]
[1659265075588,0.17823465,1708.9,1708.6,0.03363204]
[1659265075753,0.12823465,1708.9,1708.6,0.03363204]
[1659265076194,0.6,1709.1,1708.6,0.03363204]
[1659265076533,3.0,1709.0,1708.6,0.03363204]
[1659265076666,0.12823465,1708.9,1708.6,0.03363204]
[1659265078171,0.12823465,1708.7,1708.6,0.03363204]
[1659265078376,9.21128137,1708.7,1708.2,0.05]
[1659265078577,3.19804672,1708.6,1708.0,0.05]